Workbook

Sheet Mittelhilfstabelle
A2: Stunde | B2: Wind | C2: Luftfeuchtigkeit | D2: Luftdruck | E2: Taupunkttemperatur | F2: Bewölkung | H2: Stunde | I2: Wind | J2: Luftfeuchtigkeit | K2: Luftdruck | L2: Taupunkttemperatur | M2: Bewölkung
A3: 00 | B3: 2 | C3: 83 | D3: 1013.8 | E3: -2.6 | F3: 1 | H3: 00 | I3: 0 | J3: 92 | K3: 1013.9 | L3: -4.2 | M3: 2
A4: 01 | B4: 2 | C4: 85 | D4: 1014.1 | E4: -2.7 | F4: 3 | H4: 01 | I4: 0 | J4: 92 | K4: 1014 | L4: -4.3 | M4: 4
A5: 02 | B5: 3 | C5: 85 | D5: 1013.9 | E5: -2.5 | F5: 1 | H5: 02 | I5: 0 | J5: 92 | K5: 1013.7 | L5: -4.4 | M5: 5
A6: 03 | B6: 3 | C6: 85 | D6: 1013.7 | E6: -2.4 | F6: 2 | H6: 03 | I6: 0 | J6: 91 | K6: 1013.3 | L6: -4.7 | M6: 5
A7: 04 | B7: 2 | C7: 85 | D7: 1013.8 | E7: -2.3 | F7: 2 | H7: 04 | I7: 0 | J7: 93 | K7: 1012.8 | L7: -4.6 | M7: 4
A8: 05 | B8: 2 | C8: 86 | D8: 1014 | E8: -2.3 | F8: 2 | H8: 05 | I8: 1 | J8: 92 | K8: 1012.7 | L8: -4.6 | M8: 4
A9: 06 | B9: 2 | C9: 85 | D9: 1014.1 | E9: -1.6 | F9: 7 | H9: 06 | I9: 2 | J9: 89 | K9: 1012.7 | L9: -4.8 | M9: 4
A10: 07 | B10: 2 | C10: 85 | D10: 1014.2 | E10: -1.7 | F10: 7 | H10: 07 | I10: 1 | J10: 90 | K10: 1012.7 | L10: -5 | M10: 3
A11: 08 | B11: 2 | C11: 84 | D11: 1014.7 | E11: -1.8 | F11: 7 | H11: 08 | I11: 1 | J11: 89 | K11: 1013.1 | L11: -4 | M11: 4
A12: 09 | B12: 2 | C12: 82 | D12: 1014.7 | E12: -1.5 | F12: 7 | H12: 09 | I12: 0 | J12: 88 | K12: 1013.2 | L12: -3 | M12: 3
A13: 10 | B13: 2 | C13: 78 | D13: 1014.8 | E13: -1 | F13: 7 | H13: 10 | I13: 3 | J13: 78 | K13: 1012.5 | L13: -1.5 | M13: 4
A14: 11 | B14: 1 | C14: 78 | D14: 1015 | E14: -0.9 | F14: 7 | H14: 11 | I14: 3 | J14: 69 | K14: 1012.2 | L14: -2.4 | M14: 5
A15: 12 | B15: 1 | C15: 71 | D15: 1014.8 | E15: -1.6 | F15: 6 | H15: 12 | I15: 3 | J15: 60 | K15: 1012 | L15: -1.7 | M15: 6
A16: 13 | B16: 1 | C16: 70 | D16: 1014.6 | E16: -2.1 | F16: 7 | H16: 13 | I16: 3 | J16: 61 | K16: 1011.5 | L16: -2.2 | M16: 5
A17: 14 | B17: 1 | C17: 62 | D17: 1014.5 | E17: -3.2 | F17: 7 | H17: 14 | I17: 3 | J17: 62 | K17: 1011.5 | L17: -1.7 | M17: 5
A18: 15 | B18: 1 | C18: 59 | D18: 1014.2 | E18: -3.5 | F18: 7 | H18: 15 | I18: 3 | J18: 66 | K18: 1011.6 | L18: -1.7 | M18: 7
A19: 16 | B19: 1 | C19: 67 | D19: 1014 | E19: -2.3 | F19: 6 | H19: 16 | I19: 2 | J19: 65 | K19: 1011.8 | L19: -1.7 | M19: 8
A20: 17 | B20: 1 | C20: 77 | D20: 1013.8 | E20: -2 | F20: 5 | H20: 17 | I20: 2 | J20: 69 | K20: 1011.4 | L20: -1.6 | M20: 7
A21: 18 | B21: 0 | C21: 83 | D21: 1014 | E21: -2.2 | F21: 2 | H21: 18 | I21: 3 | J21: 72 | K21: 1011.9 | L21: -1.8 | M21: 7
A22: 19 | B22: 1 | C22: 86 | D22: 1014.2 | E22: -2.6 | F22: 3 | H22: 19 | I22: 1 | J22: 77 | K22: 1012.4 | L22: -1.5 | M22: 6
A23: 20 | B23: 1 | C23: 87 | D23: 1013.7 | E23: -3.1 | F23: 2 | H23: 20 | I23: 0 | J23: 75 | K23: 1012.5 | L23: -1.9 | M23: 7
A24: 21 | B24: 0 | C24: 89 | D24: 1013.9 | E24: -3.7 | F24: 1 | H24: 21 | I24: 0 | J24: 79 | K24: 1012.6 | L24: -2 | M24: 7
A25: 22 | B25: 1 | C25: 89 | D25: 1013.8 | E25: -3.5 | F25: 0 | H25: 22 | I25: 0 | J25: 81 | K25: 1012.7 | L25: -2.6 | M25: 6
A26: 23 | B26: 0 | C26: 90 | D26: 1013.9 | E26: -4 | F26: 0 | H26: 23 | I26: 1 | J26: 87 | K26: 1012.8 | L26: -3.1 | M26: 4
A27: Mittel | B27: =ROUND(AVERAGE(B3:B26),1) -> 1.4 | C27: =ROUND(AVERAGE(C3:C26),1) -> 80.5 | D27: =ROUND(AVERAGE(D3:D26),1) -> 1014.2 | E27: =AVERAGE(E3:E26) -> -2.379166667 | F27: =ROUND(AVERAGE(F3:F26),1) -> 4.1 | H27: Mittel | I27: =ROUND(AVERAGE(I3:I26),1) -> 1.3 | J27: =ROUND(AVERAGE(J3:J26),1) -> 79.5 | K27: =ROUND(AVERAGE(K3:K26),1) -> 1012.6 | L27: =AVERAGE(L3:L26) -> -2.958333333 | M27: =ROUND(AVERAGE(M3:M26),1) -> 5.1
E29: 2016-02-26 | L29: 2016-02-27
A32: Stunde | B32: Wind | C32: Luftfeuchtigkeit | D32: Luftdruck | E32: Taupunkttemperatur | F32: Bewölkung | H32: Stunde | I32: Wind | J32: Luftfeuchtigkeit | K32: Luftdruck | L32: Taupunkttemperatur | M32: Bewölkung
A33: 00 | B33: 1 | C33: 89 | D33: 1013 | E33: -3.1 | F33: 2 | H33: 00 | I33: 1 | J33: 87 | K33: 1019.2 | L33: 1.1 | M33: 8
A34: 01 | B34: 1 | C34: 89 | D34: 1013 | E34: -3.6 | F34: 3 | H34: 01 | I34: 1 | J34: 87 | K34: 1019 | L34: 1.1 | M34: 8
A35: 02 | B35: 1 | C35: 91 | D35: 1013.2 | E35: -3.4 | F35: 2 | H35: 02 | I35: 1 | J35: 89 | K35: 1019.2 | L35: 1.1 | M35: 8
A36: 03 | B36: 1 | C36: 91 | D36: 1013.4 | E36: -3.6 | F36: 1 | H36: 03 | I36: 1 | J36: 91 | K36: 1018.8 | L36: 1.1 | M36: 8
A37: 04 | B37: 1 | C37: 92 | D37: 1013.4 | E37: -3.9 | F37: 2 | H37: 04 | I37: 2 | J37: 93 | K37: 1018.8 | L37: 0.9 | M37: 8
A38: 05 | B38: 1 | C38: 91 | D38: 1014.4 | E38: -4.3 | F38: 3 | H38: 05 | I38: 1 | J38: 95 | K38: 1018.7 | L38: 0.4 | M38: 8
A39: 06 | B39: 0 | C39: 91 | D39: 1014.7 | E39: -3.6 | F39: 2 | H39: 06 | I39: 1 | J39: 96 | K39: 1019 | L39: 0.2 | M39: 8
A40: 07 | B40: 0 | C40: 91 | D40: 1015.1 | E40: -3.4 | F40: 3 | H40: 07 | I40: 1 | J40: 96 | K40: 1018.7 | L40: -0.2 | M40: 8
A41: 08 | B41: 0 | C41: 91 | D41: 1015.5 | E41: -3.6 | F41: 7 | H41: 08 | I41: 1 | J41: 96 | K41: 1019.1 | L41: -0.2 | M41: 8
A42: 09 | B42: 1 | C42: 92 | D42: 1016.1 | E42: -2 | F42: 7 | H42: 09 | I42: 1 | J42: 95 | K42: 1019.4 | L42: -0.3 | M42: 8
A43: 10 | B43: 0 | C43: 86 | D43: 1016.4 | E43: -1.5 | F43: 7 | H43: 10 | I43: 1 | J43: 95 | K43: 1019.2 | L43: -0.3 | M43: 8
A44: 11 | B44: 0 | C44: 82 | D44: 1016.7 | E44: -0.4 | F44: 7 | H44: 11 | I44: 2 | J44: 95 | K44: 1019.1 | L44: -0.2 | M44: 8
A45: 12 | B45: 1 | C45: 78 | D45: 1016.4 | E45: 0.7 | F45: 7 | H45: 12 | I45: 2 | J45: 95 | K45: 1019.2 | L45: -0.2 | M45: 8
A46: 13 | B46: 1 | C46: 73 | D46: 1016.1 | E46: 1 | F46: 7 | H46: 13 | I46: 2 | J46: 94 | K46: 1018.7 | L46: -0.4 | M46: 8
A47: 14 | B47: 2 | C47: 70 | D47: 1016.4 | E47: 0.9 | F47: 8 | H47: 14 | I47: 2 | J47: 95 | K47: 1018.4 | L47: -0.2 | M47: 8
A48: 15 | B48: 2 | C48: 72 | D48: 1016.7 | E48: 0.9 | F48: 8 | H48: 15 | I48: 2 | J48: 95 | K48: 1018.1 | L48: -0.2 | M48: 8
A49: 16 | B49: 2 | C49: 73 | D49: 1017.5 | E49: 0.9 | F49: 8 | H49: 16 | I49: 2 | J49: 95 | K49: 1017.9 | L49: -0.2 | M49: 8
A50: 17 | B50: 2 | C50: 77 | D50: 1017.9 | E50: 0.8 | F50: 8 | H50: 17 | I50: 2 | J50: 94 | K50: 1018.2 | L50: -0.4 | M50: 8
A51: 18 | B51: 2 | C51: 80 | D51: 1018.5 | E51: 0.5 | F51: 8 | H51: 18 | I51: 2 | J51: 95 | K51: 1018.7 | L51: -0.5 | M51: 8
A52: 19 | B52: 2 | C52: 80 | D52: 1018.9 | E52: 0.5 | F52: 8 | H52: 19 | I52: 2 | J52: 96 | K52: 1018.9 | L52: -0.6 | M52: 8
A53: 20 | B53: 1 | C53: 82 | D53: 1018.9 | E53: 0.5 | F53: 8 | H53: 20 | I53: 2 | J53: 97 | K53: 1018.7 | L53: -0.5 | M53: 8
A54: 21 | B54: 1 | C54: 84 | D54: 1019.3 | E54: 0.7 | F54: 8 | H54: 21 | I54: 1 | J54: 97 | K54: 1018.8 | L54: -0.5 | M54: 8
A55: 22 | B55: 1 | C55: 87 | D55: 1019.4 | E55: 1 | F55: 8 | H55: 22 | I55: 1 | J55: 97 | K55: 1018.7 | L55: -0.5 | M55: 8
A56: 23 | B56: 1 | C56: 87 | D56: 1019.2 | E56: 1.2 | F56: 8 | H56: 23 | I56: 1 | J56: 97 | K56: 1018.6 | L56: -0.6 | M56: 8
A57: Mittel | B57: =ROUND(AVERAGE(B33:B56),1) -> 1 | C57: =ROUND(AVERAGE(C33:C56),1) -> 84.1 | D57: =ROUND(AVERAGE(D33:D56),1) -> 1016.3 | E57: =ROUND(AVERAGE(E33:E56),1) -> -1.1 | F57: =ROUND(AVERAGE(F33:F56),1) -> 5.8 | H57: Mittel | I57: =ROUND(AVERAGE(I33:I56),1) -> 1.5 | J57: =ROUND(AVERAGE(J33:J56),1) -> 94.3 | K57: =ROUND(AVERAGE(K33:K56),1) -> 1018.8 | L57: =ROUND(AVERAGE(L33:L56),1) -> 0 | M57: =ROUND(AVERAGE(M33:M56),1) -> 8
E59: 2016-02-28 | L59: 2016-02-29

Sheet Kurztabelle
A2: Wetterwarte: Köttewitz | L2: Monat: | M2: Februar | R2: Jahr: | U2: 2016
A4: Dat. | B4: TTT | C4: TxTx | D4: TnTn | E4: Tg | F4: Umin. | G4: UU | H4: NN | I4: RRRR | J4: Art | L4: sss | M4: PPPP | N4: eee | O4: fff | R4: Tage mit | V4: fk | W4: Summe
J5: * | O5: Bft | P5: SS | Q5: Art ( D ) | R5: RR | S5: Ge | T5: Bf6 | U5: Bf8 | V5: Bft | W5: Gewitter
A6: 01. | B6: 8.7 | C6: 12.5 | D6: 5.2 | E6: 1.9 | F6: 73 | G6: 89 | H6: 7.5 | I6: 3.2 | J6: R | L6: 0.3 | M6: 1012.9 | N6: 6.8 | O6: 2 | P6: 0 | R6: 1 | T6: 1 | V6: 6 | AA6: max >=30,0°C | AB6: max >=25,0°C | AC6: max <0,0°C | AE6: RR >=0,1 mm | AF6: RR >=1,0 mm | AG6: RR >=3,0 mm | AH6: RR >=10,0 mm | AI6: RR >=20,0 mm
A7: 02. | B7: 11.1 | C7: 14.3 | D7: 6.8 | E7: - | F7: 64 | G7: 75 | H7: 7.5 | I7: 1.5 | J7: R | L7: 1.3 | M7: 1012.5 | N7: 6.8 | O7: 3 | P7: 0 | R7: 1 | T7: 1 | U7: 1 | V7: 8 | AA7: =COUNTIF(C6:C15,">=30") -> 0 | AB7: =COUNTIF(C6:C15,">=25") -> 0 | AC7: =COUNTIF(C6:C15,"<0") -> 0 | AE7: =COUNTIF(I6:I15,">=0,1") -> 8 | AF7: =COUNTIF(I6:I15,">=1") -> 6 | AG7: =COUNTIF(I6:I15,">=3") -> 1 | AH7: =COUNTIF(I6:I15,">=10") -> 0 | AI7: =COUNTIF(I6:I15,">=20") -> 0
A8: 03. | B8: 4.9 | C8: 7.1 | D8: 2.8 | E8: - | F8: 65 | G8: 77 | H8: 5.3 | I8: 0.3 | J8: R | L8: 0.2 | M8: 1014 | N8: 1.3 | O8: 3 | P8: 0 | R8: 1 | T8: 1 | V8: 7 | AA8: =COUNTIF(C18:C27,">=30") -> 0 | AB8: =COUNTIF(C18:C27,">=25") -> 0 | AC8: =COUNTIF(C18:C27,"<0") -> 0 | AE8: =COUNTIF(I18:I27,">=0,1") -> 6 | AF8: =COUNTIF(I18:I27,">=1") -> 4 | AG8: =COUNTIF(I18:I27,">=3") -> 3 | AH8: =COUNTIF(I18:I27,">=10") -> 0 | AI8: =COUNTIF(I18:I27,">=20") -> 0
A9: 04. | B9: 3.4 | C9: 5.3 | D9: 2.1 | E9: - | F9: 71 | G9: 82 | H9: 7.5 | I9: 1.6 | J9: R | L9: . | M9: 1019 | N9: 0.6 | O9: 3 | P9: 0 | R9: 1 | T9: 1 | V9: 6 | AA9: =COUNTIF(C30:C38,">=30") -> 0 | AB9: =COUNTIF(C30:C38,">=25") -> 0 | AC9: =COUNTIF(C30:C38,"<0") -> 0 | AE9: =COUNTIF(I30:I38,">=0,1") -> 8 | AF9: =COUNTIF(I30:I38,">=1") -> 4 | AG9: =COUNTIF(I30:I38,">=3") -> 4 | AH9: =COUNTIF(I30:I38,">=10") -> 1 | AI9: =COUNTIF(I30:I38,">=20") -> 0
A10: 05. | B10: 3.9 | C10: 7.2 | D10: 1.5 | E10: -0.6 | F10: 70 | G10: 88 | H10: 7.5 | I10: 2.1 | J10: R | L10: 0.7 | M10: 1024.3 | N10: 2 | O10: 2 | P10: 0 | R10: 1 | V10: 5
A11: 06. | B11: 6.1 | C11: 10 | D11: 2.1 | E11: -1.1 | F11: 71 | G11: 86 | H11: 5.5 | I11: . | L11: 0.7 | M11: 1017.6 | N11: 4 | O11: 2 | P11: 0 | T11: 1 | V11: 6 | AA11: min <0,0°C | AB11: min <0-10,0°C | AE11: rel.Lf. 14h >=70% | AG11: rel.Lf. 14h <=40%
A12: 07. | B12: 5.3 | C12: 8.2 | D12: 3.4 | E12: 0.2 | F12: 79 | G12: 83 | H12: 4.9 | I12: . | L12: 1 | M12: 1007.2 | N12: 2.6 | O12: 3 | P12: 0 | V12: 5 | AA12: =COUNTIF(D6:D15,"<0") -> 0 | AB12: =COUNTIF(D6:D15,"<=-10") -> 0 | AE12: =COUNTIF(F6:F15,">=70") -> 5 | AG12: =COUNTIF(F6:F15,"<=40") -> 0
A13: 08. | B13: 7.9 | C13: 11.6 | D13: 5.7 | E13: 2.1 | F13: 62 | G13: 74 | H13: 6.7 | I13: 2 | J13: R | L13: 0.4 | M13: 1002.2 | N13: 3.5 | O13: 4 | P13: 0 | R13: 1 | T13: 1 | V13: 7 | AA13: =COUNTIF(D18:D27,"<0") -> 7 | AB13: =COUNTIF(D18:D27,"<=-10") -> 0 | AE13: =COUNTIF(F18:F27,">=70") -> 6 | AG13: =COUNTIF(F18:F27,"<=40") -> 0
A14: 09. | B14: 8.1 | C14: 10.5 | D14: 6.7 | E14: - | F14: 60 | G14: 73 | H14: 5.6 | I14: 2.1 | J14: R | L14: 0.4 | M14: 995.7 | N14: 3.4 | O14: 3 | P14: 0 | R14: 1 | T14: 1 | V14: 7 | AA14: =COUNTIF(D30:D38,"<0") -> 6 | AB14: =COUNTIF(D30:D38,"<=-10") -> 0 | AE14: =COUNTIF(F30:F38,">=70") -> 3 | AG14: =COUNTIF(F30:F38,"<=40") -> 0
A15: 10. | B15: 5.1 | C15: 8.5 | D15: 2.8 | E15: -0.1 | F15: 61 | G15: 73 | H15: 7.4 | I15: 0.2 | J15: R | L15: 0.7 | M15: 993 | N15: 0.7 | O15: 3 | P15: 0 | R15: 1 | T15: 1 | V15: 6
A16: Su | B16: =SUM(B6:B15) -> 64.5 | C16: =SUM(C6:C15) -> 95.2 | D16: =SUM(D6:D15) -> 39.1 | E16: =SUM(E6:E15) -> 2.4 | F16: XXX | G16: XXX | H16: XXX | I16: =SUM(I6:I15) -> 13 | J16: XX | L16: =SUM(L6:L15) -> 5.7 | M16: XXX | N16: XXX | O16: XXX | P16: XXX | Q16: X | R16: =SUM(R6:R15) -> 8 | S16: =SUM(S6:S15) -> 0 | T16: =SUM(T6:T15) -> 8 | U16: =SUM(U6:U15) -> 1 | V16: XXX | AA16: ohne Sonne | AB16: Son. 0,1-0,9 | AC16: Son. >=10,0 | AE16: Sch. >=1 cm | AF16: Sch. >=3 cm | AG16: Sch. >=10 cm
A17: Mi | B17: =AVERAGE(B6:B15) -> 6.45 | C17: =AVERAGE(C6:C15) -> 9.52 | D17: 3.91 | E17: 0.4 | F17: XXX | G17: 80 | H17: 6.54 | I17: XXX | J17: XX | L17: =L16/10 -> 0.57 | M17: =AVERAGE(M6:M15) -> 1009.84 | N17: =AVERAGE(N6:N15) -> 3.17 | O17: =AVERAGE(O6:O15) -> 2.8 | P17: =ROUND(AVERAGE(P6:P15),1) -> 0 | Q17: X | R17: XX | S17: XX | T17: XX | U17: XX | V17: =AVERAGE(V6:V15) -> 6.3 | AA17: =COUNTIF(L6:L15,".") -> 1 | AB17: =COUNTIF(L6:L15,"<1") -> 7 | AC17: =COUNTIF(L6:L15,">=10") -> 0 | AE17: =COUNTIF(P6:P15,">=1") -> 0 | AF17: =COUNTIF(P6:P15,">=3") -> 0 | AG17: =COUNTIF(P6:P15,">=10") -> 0
A18: 11. | B18: 3.7 | C18: 6.6 | D18: 1.6 | E18: - | F18: 63 | G18: 82 | H18: 5.5 | I18: 1.8 | J18: G;R | L18: 0.8 | M18: 1001.9 | N18: 1 | O18: 3 | P18: 0 | R18: 1 | T18: 1 | V18: 6 | AA18: =COUNTIF(L18:L27,".") -> 1 | AB18: =COUNTIF(L18:L27,"<1") -> 7 | AC18: =COUNTIF(L18:L27,">=10") -> 0 | AE18: =COUNTIF(P18:P27,">=1") -> 1 | AF18: =COUNTIF(P18:P27,">=3") -> 0 | AG18: =COUNTIF(P18:P27,">=10") -> 0
A19: 12. | B19: 2 | C19: 5.3 | D19: -1.5 | E19: - | F19: 76 | G19: 87 | H19: 4 | I19: 0 | L19: 0.2 | M19: 1003.1 | N19: 0.1 | O19: 1 | P19: 0 | V19: 4 | AA19: =COUNTIF(L30:L38,".") -> 2 | AB19: =COUNTIF(L30:L38,"<1") -> 2 | AC19: =COUNTIF(L30:L38,">=10") -> 0 | AE19: =COUNTIF(P30:P38,">=1") -> 1 | AF19: =COUNTIF(P30:P38,">=3") -> 1 | AG19: =COUNTIF(P30:P38,">=10") -> 0
A20: 13. | B20: 1.4 | C20: 5.5 | D20: -2.5 | E20: -6.1 | F20: 73 | G20: 88 | H20: 4.3 | I20: 0.1 | J20: R | L20: 1.2 | M20: 995.2 | N20: -0.6 | O20: 1 | P20: 0 | R20: 1 | V20: 4
A21: 14. | B21: 6.1 | C21: 10.3 | D21: 2.9 | E21: - | F21: 70 | G21: 83 | H21: 7.5 | I21: 0.4 | J21: R | L21: 0.8 | M21: 989.6 | N21: 3.5 | O21: 2 | P21: 0 | R21: 1 | V21: 5 | AA21: Max TT | AB21: Max TxTx | AC21: Min TgTg | AE21: Max RR
A22: 15. | B22: 4.6 | C22: 7.3 | D22: 1.9 | E22: - | F22: 78 | G22: 89 | H22: 7.1 | I22: 3.1 | J22: R;S | L22: 0.9 | M22: 1009.1 | N22: 3 | O22: 1 | P22: 0 | R22: 1 | V22: 4 | AA22: =MAX(B6:B15,B18:B27,B30:B38) -> 11.1 | AB22: =MAX(C6:C15,C18:C27,C30:C38) -> 14.3 | AC22: =MIN(E6:E15,E18:E27,E30:E38) -> -8.2 | AE22: =MAX(I6:I15,I18:I27,I30:I38) -> 15.3
A23: 16. | B23: 0.3 | C23: 1.9 | D23: -0.5 | E23: -0.6 | F23: 89 | G23: 93 | H23: 8 | I23: 0 | L23: . | M23: 1033.6 | N23: -0.6 | O23: 1 | P23: 0 | Q23: V | V23: 4 | AA23: Min TT | AB23: Min TnTn | AC23: Min U14 | AE23: Max SS
A24: 17. | B24: -0.6 | C24: 1.7 | D24: -3.1 | E24: -6.1 | F24: 91 | G24: 95 | H24: 5.6 | I24: 3.1 | J24: S | L24: 0.2 | M24: 1024.5 | N24: -1.3 | O24: 1 | P24: 2 | Q24: D | R24: 1 | V24: 4 | AA24: =MIN(B6:B15,B18:B27,B30:B38) -> -0.6 | AB24: =MIN(D6:D15,D18:D27,D30:D38) -> -3.9 | AC24: =MIN(F6:F15,F18:F27,F30:F38) -> 59 | AE24: =MAX(P6:P15,P18:P27,P30:P38) -> 8
A25: 18. | B25: 2.4 | C25: 7.1 | D25: -0.8 | E25: - | F25: 62 | G25: 86 | H25: 5.7 | I25: . | L25: 4.5 | M25: 1017.5 | N25: 0.3 | O25: 1 | P25: 0 | Q25: V | V25: 4
A26: 19. | B26: 1.3 | C26: 4.6 | D26: -1.8 | E26: -3.4 | F26: 65 | G26: 83 | H26: 6.7 | I26: . | L26: 0.5 | M26: 1018.8 | N26: -1.4 | O26: 1 | P26: 0 | Q26: R | V26: 4
A27: 20. | B27: 3.7 | C27: 6.3 | D27: -0.1 | E27: -3.1 | F27: 68 | G27: 82 | H27: 6.7 | I27: 4.8 | J27: R | L27: 0.2 | M27: 1015.8 | N27: 0.8 | O27: 2 | P27: 0 | Q27: R | R27: 1 | T27: 1 | V27: 6
A28: Su | B28: =SUM(B18:B27) -> 24.9 | C28: =SUM(C18:C27) -> 56.6 | D28: =SUM(D18:D27) -> -3.9 | E28: =SUM(E18:E27) -> -19.3 | F28: XXX | G28: XXX | H28: XXX | I28: =SUM(I18:I27) -> 13.3 | J28: XX | L28: =SUM(L18:L27) -> 9.3 | M28: XXX | N28: XXX | O28: XXX | P28: XXX | Q28: X | R28: =SUM(R18:R27) -> 6 | S28: =SUM(S18:S27) -> 0 | T28: =SUM(T18:T27) -> 2 | U28: =SUM(U18:U27) -> 0 | V28: XXX
A29: Mi | B29: =AVERAGE(B18:B27) -> 2.49 | C29: =AVERAGE(C18:C27) -> 5.66 | D29: -0.39 | E29: -3.86 | F29: 73.5 | G29: 86.8 | H29: 6.11 | I29: XXX | J29: XX | L29: =L28/10 -> 0.93 | M29: =AVERAGE(M18:M27) -> 1010.91 | N29: =AVERAGE(N18:N27) -> 0.48 | O29: =AVERAGE(O18:O27) -> 1.4 | P29: =ROUND(AVERAGE(P18:P27),1) -> 0.2 | Q29: X | R29: XX | S29: XX | T29: XX | U29: XX | V29: =AVERAGE(V18:V27) -> 4.5
A30: 21. | B30: 9.7 | C30: 13.1 | D30: 6.3 | E30: 1.4 | F30: 80 | G30: 90 | H30: 7.8 | I30: 5.4 | J30: R | L30: . | M30: 1007.7 | N30: 7.9 | O30: 3 | P30: 0 | R30: 1 | T30: 1 | U30: 1 | V30: 8
A31: 22. | B31: 9.8 | C31: 13.1 | D31: 2.6 | E31: - | F31: 68 | G31: 79 | H31: 7.3 | I31: 8.6 | J31: R | L31: 1.4 | M31: 1004.8 | N31: 6.4 | O31: 3 | P31: 0 | R31: 1 | T31: 1 | V31: 7
A32: 23. | B32: 2.8 | C32: 4.6 | D32: 1.3 | E32: 0.9 | F32: 84 | G32: 92 | H32: 7.3 | I32: 0.6 | J32: R | L32: 0.1 | M32: 1009.9 | N32: 1.9 | O32: 2 | P32: 0 | R32: 1 | V32: 5
A33: 24. | B33: 2.4 | C33: 5.3 | D33: -1.8 | E33: - | F33: 67 | G33: 84 | H33: 4.7 | I33: 0.4 | J33: R | L33: 3.1 | M33: 1015.6 | N33: 0 | O33: 2 | P33: 0 | R33: 1 | V33: 5
A34: 25. | B34: 0.3 | C34: 4.4 | D34: -2.7 | E34: - | F34: 68 | G34: 87 | H34: 4.5 | I34: 0.2 | J34: R | L34: 2.4 | M34: 1012.5 | N34: -1.7 | O34: 1 | P34: 0 | R34: 1 | V34: 5
A35: 26. | B35: 0.7 | C35: 3.9 | D35: -3.1 | E35: - | F35: 59 | G35: 80 | H35: 4.1 | I35: 0.2 | J35: R | L35: 0.6 | M35: 1014.2 | N35: -2.4 | O35: 1 | P35: 0 | R35: 1 | V35: 4
A36: 27. | B36: 0.4 | C36: 5.3 | D36: -3.9 | E36: -8.2 | F36: 60 | G36: 79 | H36: 5.1 | I36: . | L36: 4.1 | M36: 1012.6 | N36: -3 | O36: 1 | P36: 0 | V36: 5
A37: 28. | B37: 1.4 | C37: 6.4 | D37: -3.1 | E37: - | F37: 69 | G37: 84 | H37: 5.8 | I37: 5.1 | J37: S | L37: 3 | M37: 1016.3 | N37: -1.1 | O37: 1 | P37: 0 | V37: 3
A38: 29. | B38: 0.8 | C38: 3.1 | D38: -0.3 | E38: - | F38: 86 | G38: 94 | H38: 8 | I38: 15.3 | J38: S | L38: . | M38: 1018.8 | N38: 0 | O38: 2 | P38: 8 | Q38: * | R38: 1 | V38: 4
A39: Su | B39: =SUM(B30:B38) -> 28.3 | C39: =SUM(C30:C38) -> 59.2 | D39: =SUM(D30:D38) -> -4.7 | E39: =SUM(E30:E38) -> -5.9 | F39: XXX | G39: XXX | H39: XXX | I39: =SUM(I30:I38) -> 35.8 | J39: XX | L39: =SUM(L30:L38) -> 14.7 | M39: XXX | N39: XXX | O39: XXX | P39: XXX | Q39: X | R39: =SUM(R30:R38) -> 7 | S39: =SUM(S30:S38) -> 0 | T39: =SUM(T30:T38) -> 2 | U39: =SUM(U30:U38) -> 1 | V39: XXX
A40: Mi | B40: =AVERAGE(B30:B38) -> 3.144444444 | C40: =AVERAGE(C30:C38) -> 6.577777778 | D40: =AVERAGE(D30:D38) -> -0.5222222222 | E40: =AVERAGE(E30:E38) -> -1.966666667 | F40: XXX | G40: =AVERAGE(G30:G38) -> 85.44444444 | H40: =AVERAGE(H30:H38) -> 6.066666667 | I40: XXX | J40: XX | L40: XXX | M40: =AVERAGE(M30:M38) -> 1012.488889 | N40: =AVERAGE(N30:N38) -> 0.8888888889 | O40: =AVERAGE(O30:O38) -> 1.777777778 | P40: =AVERAGE(P30:P38) -> 0.8888888889 | Q40: X | R40: XX | S40: XX | T40: XX | U40: XX | V40: =AVERAGE(V30:V38) -> 5.111111111
A41: MSu | B41: =SUM(B16+B28+B39) -> 117.7 | C41: =SUM(C16+C28+C39) -> 211 | D41: =SUM(D16+D28+D39) -> 30.5 | E41: =SUM(E16+E28+E39) -> -22.8 | F41: XXX | G41: XXX | H41: XXX | I41: =SUM(I16+I28+I39) -> 62.1 | J41: XX | L41: =SUM(L16+L28+L39) -> 29.7 | M41: XXX | N41: XXX | O41: XXX | P41: XXX | Q41: X | R41: =SUM(R16+R28+R39) -> 21 | S41: =SUM(S16+S28+S39) -> 0 | T41: =SUM(T16+T28+T39) -> 12 | U41: =SUM(U16+U28+U39) -> 2 | V41: XXX
A42: MMi | B42: =AVERAGE(B6:B15,B18:B27,B30:B38) -> 4.05862069 | C42: =AVERAGE(C6:C15,C18:C27,C30:C38) -> 7.275862069 | D42: =AVERAGE(D6:D15,D18:D27,D30:D38) -> 1.051724138 | E42: =AVERAGE(E6:E15,E18:E27,E30:E38) -> -1.628571429 | F42: XXX | G42: =AVERAGE(G6:G15,G18:G27,G30:G38) -> 84.03448276 | H42: =AVERAGE(H6:H15,H18:H27,H30:H38) -> 6.244827586 | I42: XXXXX | J42: XX | L42: XXXX | M42: =AVERAGE(M6:M15,M18:M27,M30:M38) -> 1011.031034 | N42: =AVERAGE(N6:N15,N18:N27,N30:N38) -> 1.534482759 | O42: =AVERAGE(O6:O15,O18:O27,O30:O38) -> 2 | P42: =ROUND(AVERAGE(P6:P15,P18:P27,P30:P38),1) -> 0.3 | Q42: X | R42: XX | S42: XX | T42: XX | U42: XX | V42: =AVERAGE(V17,V29,V40) -> 5.303703704
B44: Norm | C44: % v N.- | D44: Abw. | E44: Zahl der Tage | L44: Niederschlag mm | P44: Sonnensch.-dauer Std
B45: wert | C45: wert | D45: K | E45: Max.d.Lufttemp.°C | L45: >/= 0,1 | O45: =SUM(AE7:AE9) -> 22 | P45: ohne Sonne | V45: =SUM(AA17:AA19) -> 4
A46: TTT | B46: 0.9 | C46: XXXX | D46: =SUM(B42-B46) -> 3.15862069 | E46: Tropentag/Hitzetag | I46: =SUM(AA7:AA9) -> 0 | L46: >/= 1,0 | O46: =SUM(AF7:AF9) -> 14 | P46: 0,1 bis 0,9 | V46: =SUM(AB17:AB19) -> 16
A47: RRR | B47: 35 | C47: =SUM(I41*100/B47) -> 177.4285714 | D47: XXXX | E47: Sommertag | I47: =SUM(AB7:AB9) -> 0 | L47: >/= 3,0 | O47: =SUM(AG7:AG9) -> 8 | P47: >/= 10,0 | V47: =SUM(AC17:AC19) -> 0
A48: sss | B48: 78 | C48: =SUM(L41*100/B48) -> 38.07692308 | D48: XXXX | E48: Eistag | I48: =SUM(AC7:AC9) -> 0 | L48: >/=10,0 | O48: =SUM(AH7:AH9) -> 1 | P48: Schneedecke cm
A49: astr. | D49: XXXX | E49: Polartag | I49: 0 | L49: >/= 20,0 | O49: =SUM(AI7:AI9) -> 0 | P49: >/= 1 | V49: =SUM(AE17:AE19) -> 2
A50: mgl. | B50: 280 | C50: =SUM(L41*100/B50) -> 10.60714286 | D50: XXXX | E50: Min.d.Lufttemp.°C | L50: Rel. Luftfeuchte 14 Uhr | P50: >/= 3 | V50: =SUM(AF17:AF19) -> 1
A51: sss | D51: XXXX | E51: Frosttag | I51: =SUM(AA12:AA14) -> 13 | L51: >/=70% | O51: =SUM(AE12:AE14) -> 14 | P51: >/= 10 | V51: =SUM(AG17:AG19) -> 0
E52: Tropennacht | I52: 0 | L52: </=40% | O52: =SUM(AG12:AG14) -> 0
E55: Unter "Tage mit" sind die Angaben Bft 6 & Bft 8 nicht 10 min. - Mittel sonder 2,5 s - Werte.
E56: Wenn ein Wert auch mit einem 10 min. - Wert erreicht wird, erfolgt eine rote Markierung.
E57: Dies gilt rückwirkend auf November 2012.
F111: Tage mit Bft 6 /8 eigentlich in 10 min. - Mittel

Sheet Sichtst.
E1: Sichtweitenstatistik
B5: Wetterstation: Köttewitz | F5: Monat: | G5: Februar | K5: Jahr: | L5: 2016
A7: Dat. | B7: Nebeldauer | C7: Nebel | D7: Dunst | E7: Sicht | F7: Sicht | G7: Sicht | H7: Sicht
B8: in St. u. Min. | E8: mittel | F8: normal | G8: gut | H8: sehr gut
A9: 01. | B9: - | C9: - | D9: 1 | E9: 1 | F9: 1 | G9: 1 | H9: - | N9: =IF(ISNUMBER(B9),B9*24," ") ->  | O9: =IF(ISNUMBER(N9),IF(N9<1,1," ")," ") ->  | P9: =IF(ISNUMBER(N9),IF(N9<8,2," ")," ") ->  | Q9: =IF(ISNUMBER(N9),IF(N9<24,3," ")," ") ->  | R9: =MIN(O9:Q9) -> 0
A10: 02. | B10: - | C10: =IF(R10=1,1,"-") -> - | D10: - | E10: - | F10: 1 | G10: 1 | H10: - | R10: 0
A11: 03. | B11: - | C11: - | D11: - | E11: - | F11: 1 | G11: 1 | H11: - | R11: 0
A12: 04. | B12: - | C12: =IF(R12=1,1,"-") -> - | D12: - | E12: 1 | F12: 1 | G12: - | H12: - | R12: 0
A13: 05. | B13: - | C13: =IF(R13=1,1,"-") -> - | D13: - | E13: 1 | F13: 1 | G13: - | H13: - | R13: 0
A14: 06. | B14: - | C14: - | D14: - | E14: - | F14: 1 | G14: - | H14: - | R14: 0
A15: 07. | B15: - | C15: - | D15: - | E15: - | F15: 1 | G15: - | H15: - | R15: 0
A16: 08. | B16: - | C16: - | D16: - | E16: - | F16: 1 | G16: 1 | H16: - | R16: 0
A17: 09. | B17: - | C17: - | D17: - | E17: - | F17: 1 | G17: 1 | H17: - | R17: 0
A18: 10. | B18: - | C18: - | D18: - | E18: - | F18: 1 | G18: 1 | H18: - | R18: 0
A19: 11. | B19: - | C19: - | D19: 1 | E19: 1 | F19: 1 | G19: - | H19: - | R19: 0
A20: 12. | B20: - | C20: - | D20: - | E20: - | F20: 1 | G20: - | H20: - | R20: 0
A21: 13. | B21: - | C21: - | D21: - | E21: - | F21: 1 | G21: - | H21: - | R21: 0
A22: 14. | B22: - | C22: =IF(R22=1,1,"-") -> - | D22: - | E22: - | F22: 1 | G22: - | H22: - | R22: 0
A23: 15. | B23: - | C23: - | D23: - | E23: - | F23: 1 | G23: - | H23: - | R23: 0
A24: 16. | B24: - | C24: - | D24: - | E24: 1 | F24: 1 | G24: - | H24: - | R24: 0
A25: 17. | B25: - | C25: - | D25: - | E25: 1 | F25: 1 | G25: - | H25: - | R25: 0
A26: 18. | B26: - | C26: - | D26: - | E26: - | F26: 1 | G26: - | H26: - | R26: 0
A27: 19. | B27: - | C27: - | D27: - | E27: - | F27: 1 | G27: - | H27: - | R27: 0
A28: 20. | B28: - | C28: - | D28: - | E28: 1 | F28: 1 | G28: - | H28: - | R28: 0
A29: 21. | B29: - | C29: - | D29: 1 | E29: 1 | F29: 1 | G29: - | H29: - | R29: 0
A30: 22. | B30: - | C30: - | D30: 1 | E30: 1 | F30: 1 | G30: 1 | H30: - | R30: 0
A31: 23. | B31: - | C31: - | D31: - | E31: 1 | F31: 1 | G31: - | H31: - | R31: 0
A32: 24. | B32: - | C32: - | D32: - | E32: 1 | F32: 1 | G32: - | H32: - | R32: 0
A33: 25. | B33: - | C33: - | D33: - | E33: - | F33: 1 | G33: - | H33: - | R33: 0
A34: 26. | B34: - | C34: - | D34: - | E34: - | F34: 1 | G34: - | H34: - | R34: 0
A35: 27. | B35: - | C35: - | D35: - | E35: - | F35: 1 | G35: - | H35: - | R35: 0
A36: 28. | B36: - | C36: - | D36: 1 | E36: 1 | F36: 1 | G36: - | H36: - | R36: 0
A37: 29. | B37: - | C37: - | D37: 1 | E37: 1 | F37: - | G37: - | H37: -
A38: Su. | B38: =SUM(B9:B37) -> 00:00:00 | C38: 0 | D38: 6 | E38: 13 | F38: 28 | G38: 7 | H38: 0
B40: Anzahl der Nebeltage : | E40: =SUM(C38) -> 0
B41: Anzahl der Tage Sicht >= 50 km : | E41: =SUM(G38) -> 7

Sheet Monatsdiagramm
A1: Klimadiagramm | C1: Wetterstation Köttewitz | I1: (211 m ü. NHN)
A3: Februar 2016
C5: aktuell | D5: langj. Mittel | E5: Abw. vom lj. Mittel
B6: höchste Temperatur (°C): | C6: =MAX('Daten für Diagr.'!C2:C30) -> 14.3 | D6: am | E6: 2016-02-02
B7: mittlere Temperatur (°C): | C7: ='Daten für Diagr.'!B31 -> 4.062068966 | D7: =Kurztabelle!B46 -> 0.9 | E7: =C7-D7 -> 3.162068966 | F7: K
B8: tiefste Temperatur (°C): | C8: =MIN('Daten für Diagr.'!D2:D30) -> -3.9 | D8: am | E8: 2016-02-27
B9: Niederschlagshöhe (mm): | C9: =Kurztabelle!I41 -> 62.1 | D9: =Kurztabelle!B47 -> 35 | E9: =100/D9*C9 -> 177.4285714 | F9: %
B10: Sonnenscheindauer (Std.)*: | C10: =Kurztabelle!L41 -> 29.7 | D10: =Kurztabelle!B48 -> 78 | E10: =100/D10*C10 -> 38.07692308 | F10: %
A66: *Die Wetterstation kann, durch geographische Hindernisse, nicht die maximal mögliche Sonnenscheindauer aufzeichnen. Es gilt ein Übergangsprozentsatz von: Dez 30 %; Okt/Nov & Jan/Feb 40 %; Mär & Sep 65 %; Apr 80 %; Mai - August 90 %.
A67: Diese Werte entsprechend annähernd 100 % (Normalwert Köttewitz). Nach 10 Jahren erfolgt die Umstellung des Prozentsatzes nach der örtlichen Aufzeichnung.

Sheet Daten für Diagr.
B1: Td | C1: Tmax | D1: Tmin | E1: RR | F1: Schnee | G1: Sonne | H1: Luftdr. | I1: MWT | J1: GWL | K1: Name | L1: Sonstiges
A2: 2016-02-01 | B2: 8.7 | C2: 12.5 | D2: 5.2 | E2: 3.2 | G2: 0.3 | H2: 1012.9 | I2: 0.6 | K2: T Norkys | L2: Von 05:50 Uhr - 07:04 Uhr; 08:00 Uhr - 08:09 Uhr; 09:10 Uhr - 10:09 Uhr; 10:30 Uhr - 10:34 Uhr mäßiger Regen (WW 63). Von 00:00 Uhr - 00:59 Uhr; 01:50 Uhr - 02:29 Uhr; 02:45 Uhr - 03:49 Uhr; 07:10 Uhr - 07:24 Uhr; 07:45 Uhr - 08:14 Uhr; 09:40 Uhr - 09:54 Uhr; 10:35 Uhr - 10:49 Uhr; 11:10 Uhr - 12:54 Uhr leichten Regen (WW 61). Von 07:40 Uhr - 07:44 Uhr; 10:10 Uhr - 10:29 Uhr; 10:50 Uhr - 11:09 Uhr leichter Regen mit Sprühregen (WW 58). Von 03:50 Uhr - 04:19 Uhr; 07:25 Uhr - 07:39 Uhr; 08:15 Uhr - 09:09 Uhr mäßiger Sprühregen (WW 53). Von 04:20 Uhr - 05:49 Uhr leichter Sprühregen, unterbrochen (WW 50).
A3: 2016-02-02 | B3: 11.1 | C3: 14.3 | D3: 6.8 | E3: 1.5 | G3: 1.3 | H3: 1012.5 | I3: 0.6 | J3: NWz | L3: Von 19:15 Uhr - 19:59 Uhr mäßiger Regen (WW 63). Von 20:00 Uhr - 20:29 Uhr; 20:44 Uhr - 23:19 Uhr leichter Regen (WW 61).
A4: 2016-02-03 | B4: 4.9 | C4: 7.1 | D4: 2.8 | E4: 0.3 | G4: 0.2 | H4: 1014 | I4: 0.6 | L4: Von 23:20 Uhr - 23:59 Uhr leichter Regen (WW 61).
A5: 2016-02-04 | B5: 3.4 | C5: 5.3 | D5: 2.1 | E5: 1.6 | H5: 1019 | I5: 0.65 | L5: Um 03:40 Uhr; 23:35 Uhr - 23:59 Uhr mäßiger Regen (WW 63). Von 00:00 Uhr - 01:14 Uhr; Um 07:00 Uhr; 07:55 Uhr - 08:09 Uhr; 19:20 Uhr - 23:09 Uhr leichter Regen (WW 61).
A6: 2016-02-05 | B6: 3.9 | C6: 7.2 | D6: 1.5 | E6: 2.1 | G6: 0.7 | H6: 1024.3 | I6: 0.65 | J6: Wa | K6: H Erwin | L6: Von 18:10 Uhr - 19:09 Uhr; 19:40 Uhr - 19:59 Uhr mäßiger Regen (WW 63). Von 08:30 Uhr - 08:49 Uhr; 20:30 Uhr - 20:59 Uhr mäßiger Regen, unterbrochen (WW 62). Von 00:00 Uhr - 00:39 Uhr; 03:25 Uhr - 03:49 Uhr; 15:30 Uhr - 18:09 Uhr; 19:10 Uhr - 19:39 Uhr; 20:00 Uhr - 20:29 Uhr; 21:00 Uhr - 21:29 Uhr leichter Regen (WW 61).
A7: 2016-02-06 | B7: 6.1 | C7: 10 | D7: 2.1 | G7: 0.7 | H7: 1017.6 | I7: 0.65 | J7: TrW | K7: T Quirina
A8: 2016-02-07 | B8: 5.3 | C8: 8.2 | D8: 3.4 | G8: 1 | H8: 1007.2 | I8: 0.7 | J8: SWz
A9: 2016-02-08 | B9: 8 | C9: 11.6 | D9: 5.7 | E9: 2 | G9: 0.4 | H9: 1002.2 | I9: 0.7 | K9: T Ruzica | L9: Von 17:30 Uhr - 17:49 Uhr starker Regen (WW 65). Von 18:10 Uhr - 18:29 Uhr mäßiger Regen (WW 63). Von 15:20 Uhr - 15:39 Uhr leichter Regen (WW 61).
A10: 2016-02-09 | B10: 8.1 | C10: 10.5 | D10: 6.7 | E10: 2.1 | G10: 0.4 | H10: 995.7 | I10: 0.75 | J10: Wz | K10: T Susanna | L10: Von 14:30 Uhr - 14:54 Uhr; 16:25 Uhr - 16:44 Uhr; 21:45 Uhr - 22:19 Uhr mäßiger Regen (WW 63). Von 13:45 Uhr - 14:29 Uhr; 14:55 Uhr - 15:14 Uhr; 16:05 Uhr - 16:24 Uhr leichter Regen (WW 61).
A11: 2016-02-10 | B11: 5.1 | C11: 8.5 | D11: 2.8 | E11: 0.2 | G11: 0.7 | H11: 993 | I11: 0.75 | J11: TrM | L11: Von 01:10 Uhr - 01:19 Uhr; 20:00 Uhr - 20:09 Uhr mäßiger Regen (WW 63).
A12: 2016-02-11 | B12: 3.7 | C12: 6.6 | D12: 1.6 | E12: 1.8 | G12: 0.8 | H12: 1001.9 | I12: 0.8 | L12: Von 14:30 Uhr - 14:49 Uhr mäßiger Graupelschauer (WW 88). Von 15:20 Uhr - 15:29 Uhr mäßiger Schneeregenschauer (WW 84). Von 13:00 Uhr - 13:49 Uhr; 18:25 Uhr - 18:49 Uhr leichter Regenschauer (WW 80). Von 00:15 Uhr - 01:19 mäßiger Regen, unterbrochen (WW 62).
A13: 2016-02-12 | B13: 2 | C13: 5.3 | D13: -1.5 | G13: 0.2 | H13: 1003.1 | I13: 0.8 | J13: Ws | K13: T Therese | L13: Gegen 14:20 Uhr leichter Regenschauer (WW 80).
A14: 2016-02-13 | B14: 1.4 | C14: 5.5 | D14: -2.5 | E14: 0.1 | G14: 1.2 | H14: 995.2 | I14: 0.85
A15: 2016-02-14 | B15: 6.1 | C15: 10.3 | D15: 2.9 | E15: 0.4 | G15: 0.8 | H15: 989.6 | I15: 0.85 | J15: TM | K15: T Ulrika | L15: Um 05:10 Uhr; 06:15 Uhr; Von 06:40 Uhr - 06:49 Uhr; 21:00 Uhr - 22:29 Uhr leichter Regen (WW 61). Von 08:40 Uhr - 09:19 Uhr leichter Regen, unterbrochen (WW 60).
A16: 2016-02-15 | B16: 4.6 | C16: 7.3 | D16: 1.9 | E16: 3.1 | G16: 0.9 | H16: 1009.1 | I16: 0.9 | J16: U | L16: Von 22:20 Uhr - 23:59 Uhr leichter Regen (WW 61). Von 19:50 Uhr - 21:09 Uhr leichter Regen, unterbrochen (WW 60).
A17: 2016-02-16 | B17: 0.3 | C17: 1.9 | D17: -0.5 | F17: 0 | H17: 1033.6 | I17: 0.9 | J17: BM | K17: H Friedhelm | L17: Von 03:30 Uhr - 08:29 Uhr leichter Schneefall (WW 71). Von 01:50 Uhr - 03:29 Uhr leichter Schneeregen (WW 68). Von 00:00 Uhr - 01:49 Uhr leichter Regen (WW 61).
A18: 2016-02-17 | B18: -0.6 | C18: 1.7 | D18: -3.1 | E18: 3.1 | F18: 2 | G18: 0.2 | H18: 1024.5 | I18: 0.95 | J18: SEz | K18: T Virginie | L18: Von 13:35 Uhr - 15:49 Uhr mäßiger Schneefall (WW 73). Von 11:45 Uhr - 13:34 Uhr mäßiger Schneefall, unterbrochen (WW 72). Von 09:40 Uhr - 09:49 Uhr; 11:40 Uhr - 11:44 Uhr; 15:50 Uhr - 15:54 Uhr leichter Schneefall (WW 71). Von 09:00 Uhr - 09:39 Uhr; 09:50 Uhr - 11:39 Uhr Schneeflocken (WW 70).
A19: 2016-02-18 | B19: 2.4 | C19: 7.1 | D19: -0.8 | F19: 0 | G19: 4.5 | H19: 1017.5 | I19: 0.95 | J19: SWz | K19: H Gerhard
A20: 2016-02-19 | B20: 1.3 | C20: 4.6 | D20: -1.8 | G20: 0.5 | H20: 1018.8 | I20: 1 | J20: Wa
A21: 2016-02-20 | B21: 3.7 | C21: 6.3 | D21: -0.1 | E21: 4.8 | G21: 0.2 | H21: 1015.8 | I21: 1 | J21: Wz | K21: T Xin | L21: Von 17:00 Uhr - 17:59 Uhr; 21:50 Uhr - 22:34 Uhr mäßiger Regen (WW 63). Von 12:00 Uhr - 12:49 Uhr; 13:05 Uhr - 15:19 Uhr; 15:30 Uhr - 16:59 Uhr; 18:00 Uhr - 18:34 Uhr; 20:55 Uhr - 21:49 Uhr; 22:35 Uhr - 23:59 Uhr leichter Regen (WW 61).
A22: 2016-02-21 | B22: 9.7 | C22: 13.1 | D22: 6.3 | E22: 5.4 | H22: 1007.7 | I22: 1.05 | L22: Von 06:40 Uhr - 07:59 Uhr; 10:55 Uhr - 13:29 Uhr mäßiger Regen (WW 63). Von 08:45 Uhr - 09:34 Uhr; 13:30 Uhr - 14:09 Uhr mäßiger Regen, unterbrochen (WW 62). Von 00:00 Uhr - 01:19 Uhr; Um 05:20 Uhr; Um 06:20 Uhr; 08:00 Uhr - 08:19 Uhr; 09:35 Uhr - 10:14 Uhr; 10:40 Uhr - 10:54 Uhr; 14:30 Uhr - 14:39 Uhr leichter Regen (WW 61). Von 08:20 Uhr - 08:44 Uhr; 10:15 Uhr -10:39 Uhr Regentropfen (WW 60). Von 14:10 Uhr - 14:29 Uhr; 14:40 Uhr - 18:09 Uhr leichter Sprühregen (WW 51).
A23: 2016-02-22 | B23: 9.8 | C23: 13.1 | D23: 2.6 | E23: 8.6 | G23: 1.4 | H23: 1004.8 | I23: 1.1 | J23: NWz | L23: Um 13:05 Uhr; 18:10 Uhr - 18:59 Uhr; 21:50 Uhr - 23:59 Uhr mäßiger Regen (WW 63). Gegen 15:00 Uhr; 18:00 Uhr - 18:09 Uhr; 20:09 Uh - 20:44 Uhr; 21:35 Uhr - 21:49 Uhr leichter Regen (WW 61). Von 19:00 Uhr - 20:09 Uhr; 20:45 Uhr - 21:34 Uhr mäßiger Sprühregen (WW 53).
A24: 2016-02-23 | B24: 2.8 | C24: 4.6 | D24: 1.3 | E24: 0.6 | G24: 0.1 | H24: 1009.9 | I24: 1.15 | L24: Von 00:00 Uhr - 01:09 Uhr; 23:50 Uhr - 23:59 Uhr mäßiger Regen (WW 63). Von 01:10 Uhr - 08:59 Uhr leichter Regen (WW 61). Von 09:00 Uhr - Gegen 11:00 Uhr Regentropfen (WW 60).
A25: 2016-02-24 | B25: 2.4 | C25: 5.3 | D25: -1.8 | E25: 0.4 | G25: 3.1 | H25: 1015.6 | I25: 1.2 | L25: Von 03:10 Uhr - 03:19 Uhr; 04:30 Uhr - 05:04 Uhr; 08:20 Uhr - 08:29 Uhr; 13:30 Uhr - 13:44 Uhr mäßiger Regen (WW 63). Von 00:00 Uhr - 00:19 Uhr; 03:20 Uhr - 03:29 Uhr; Gegen 10:10 Uhr; Um 14:30 Uhr leichter Regen (WW 61). Von 15:50 Uhr - 15:59 Uhr Regentropfen (WW 60).
A26: 2016-02-25 | B26: 0.3 | C26: 4.4 | D26: -2.7 | E26: 0.2 | G26: 2.4 | H26: 1012.5 | I26: 1.25 | J26: Wa | K26: H Hans | L26: Von 11:55 Uhr - 12:24 Uhr; Um 14:20 Uhr; Von 17:20 Uhr - 17:34 Uhr; 18:50 Uhr - 19:04 Uhr mäßiger Regen (WW 63).
A27: 2016-02-26 | B27: 0.7 | C27: 3.9 | D27: -3.1 | E27: 0.2 | G27: 0.6 | H27: 1014.2 | I27: 1.3 | L27: Von 15:45 Uhr - 16:24 Uhr mäßiger Regen (WW 63).
A28: 2016-02-27 | B28: 0.4 | C28: 5.3 | D28: -3.9 | G28: 4.1 | H28: 1012.6 | I28: 1.35
A29: 2016-02-28 | B29: 1.4 | C29: 6.4 | D29: -3.1 | E29: 5.1 | F29: 0 | G29: 3 | H29: 1016.3 | I29: 1.4 | J29: TrM | K29: T Zissi
A30: 2016-02-29 | B30: 0.8 | C30: 3.1 | D30: -0.3 | E30: 15.3 | F30: 8 | H30: 1018.8 | I30: 1.4 | L30: Von 06:50 Uhr - 10:39 Uhr; 14:50 Uhr - 15:49 Uhr; 16:55 Uhr - 23:29 Uhr mäßiger Schneefall (WW 73). Von 23:30 Uhr - 23:59 Uhr leichter Schneefall (WW 71). Von 10:40 Uhr - 12:29 Uhr; 15:50 Uhr - 16:54 Uhr Schneeflocken (WW 70). Von 05:00 Uhr - 05:29 Uhr; 06:00 Uhr - 06:49 Uhr mäßiger Schneeregen (WW 69). Von 05:30 Uhr - 05:44 Uhr leichter Schneeregen (WW 68). Von 03:30 Uhr - 04:59 Uhr mäßiger Regen (WW 63). Von 01:20 Uhr - 01:29 Uhr; 02:20 Uhr - 03:29 Uhr leichter Regen (WW 61).
A31: Durchschnitt | B31: =AVERAGE(B2:B30) -> 4.062068966 | C31: =AVERAGE(C2:C30) -> 7.275862069 | D31: =AVERAGE(D2:D30) -> 1.051724138 | E31: - | G31: =AVERAGE(G2:G30) -> 1.188 | H31: =AVERAGE(H2:H30) -> 1011.031034 | I31: =AVERAGE(I2:I30) -> 0.925862069
A32: Mittel | B32: 0.9 | E32: 35 | F32: - | G32: 78 | H32: 1018.1
A88: 1
A89: 2
A90: 3
A91: 4
A92: 5
A93: 6
A94: 7
A95: 8
A96: 9
A97: 10
A98: 11
A99: 12
A100: 13
A101: 14
A102: 15
A103: 16
A104: 17
A105: 18
A106: 19
A107: 20
A108: 21
A109: 22
A110: 23
A111: 24
A112: 25
A113: 26
A114: 27
A115: 28
A116: 29
A117: 30
A118: 31
